bitfinex/quotes_BTCUSD_20241216
["timestamp","ask_amount","ask_price","bid_price","bid_amount"]
[1734317299835,0.1735907,104410.0,104400.0,0.00065038]
[1734317300081,0.1735907,104410.0,104400.0,0.15390638]
[1734317300283,0.1735907,104410.0,104400.0,0.15689715]
[1734317300485,0.1735907,104410.0,104400.0,0.00364115]
[1734317301249,0.1735907,104410.0,104400.0,0.00065038]
[1734317301473,0.1735907,104410.0,104400.0,0.00364131]
[1734317301670,0.1725907,104410.0,104400.0,0.00364131]
[1734317301843,0.3641427,104410.0,104400.0,0.00364131]
[1734317304908,0.39175506,104410.0,104400.0,0.00364131]
[1734317305985,0.77235506,104410.0,104400.0,0.00364131]
[1734317307658,0.82235506,104410.0,104400.0,0.00364131]
[1734317308444,0.7447427,104410.0,104400.0,0.00364131]
[1734317308841,0.05,104380.0,104370.0,0.03976296]
[1734317309048,0.05,104380.0,104360.0,0.1534504]
[1734317309049,0.04522741,104370.0,104360.0,0.1534504]
[1734317309256,0.13951811,104370.0,104360.0,0.3067574]
[1734317310265,0.14008157,104370.0,104360.0,0.3067574]
[1734317310468,0.09485416,104370.0,104360.0,0.3067574]
[1734317310673,0.04579087,104370.0,104360.0,0.3067574]
[1734317310890,0.00056346,104370.0,104360.0,0.3067574]
[1734317311091,0.04579087,104370.0,104360.0,0.3067574]
[1734317311807,0.04579087,104370.0,104360.0,0.33156165]
[1734317312480,0.04579087,104370.0,104360.0,0.33754485]
[1734317313904,0.00056346,104370.0,104360.0,0.42386872]
[1734317314286,0.00056346,104370.0,104360.0,0.42386846]
[1734317317820,0.14485416,104370.0,104360.0,0.03093359]
[1734317317958,0.09579087,104370.0,104360.0,0.18424859]
[1734317318131,0.04579087,104370.0,104360.0,0.18424859]
[1734317318334,0.09579087,104370.0,104360.0,0.18424859]
[1734317320401,0.09579087,104370.0,104360.0,0.1842489]
[1734317320599,0.04579087,104370.0,104360.0,0.1842489]
[1734317320963,0.09579087,104370.0,104360.0,0.1842489]
[1734317321378,0.04579087,104370.0,104360.0,0.1842489]
[1734317321583,0.09579087,104370.0,104360.0,0.1842489]
[1734317321783,0.04579087,104370.0,104360.0,0.1842489]
[1734317322891,0.09579087,104370.0,104360.0,0.1842489]
[1734317323803,0.14485416,104370.0,104360.0,0.1842489]
[1734317324036,0.19008157,104370.0,104360.0,0.1842489]
[1734317324458,0.09579087,104370.0,104360.0,0.1842489]
[1734317326902,0.09579087,104370.0,104360.0,0.18424881]
[1734317327436,0.04579087,104370.0,104360.0,0.18424881]
[1734317327637,0.00056346,104370.0,104360.0,0.18424881]
[1734317328070,0.00056346,104370.0,104350.0,0.23885858]
[1734317328242,0.00056346,104370.0,104350.0,0.33314928]
[1734317328685,0.00056346,104370.0,104360.0,0.153315]
[1734317331002,0.09479087,104380.0,104360.0,0.30663]
[1734317331349,0.09479087,104380.0,104360.0,0.46050846]
[1734317331800,0.09479087,104380.0,104370.0,0.1533]
[1734317331801,0.1298,104380.0,104370.0,0.1533]
[1734317332009,0.2240907,104380.0,104370.0,0.1533]
[1734317332637,0.1756907,104380.0,104370.0,0.1533]
[1734317333070,0.04479087,104380.0,104370.0,0.1533]
[1734317333278,0.09479087,104380.0,104370.0,0.1533]
[1734317333897,0.04479087,104380.0,104370.0,0.17505269]
[1734317335518,0.04479087,104380.0,104370.0,0.26086978]
[1734317335930,0.12646367,104400.0,104390.0,0.153271]
[1734317336138,0.0001728,104400.0,104390.0,0.23959487]
[1734317336561,0.0001728,104400.0,104390.0,0.32541196]
[1734317336972,0.0001728,104400.0,104390.0,0.62577179]
[1734317337585,8e-07,104400.0,104390.0,0.84878814]
[1734317337787,8e-07,104400.0,104390.0,1.01869707]
[1734317337990,8e-07,104400.0,104390.0,0.94158056]
[1734317338196,0.0001728,104410.0,104400.0,0.16762387]
[1734317338371,0.0001728,104410.0,104400.0,0.6479799]
[1734317338577,0.0001728,104410.0,104400.0,0.8012359]
[1734317338753,0.0001728,104410.0,104400.0,1.09987047]
[1734317339347,8e-07,104410.0,104400.0,1.2284898]
[1734317339521,8e-07,104410.0,104400.0,1.20274226]
[1734317339940,8e-07,104410.0,104400.0,1.03115767]
[1734317340149,8e-07,104410.0,104400.0,1.03713727]
[1734317340741,8e-07,104410.0,104400.0,1.08010782]
[1734317341769,8e-07,104410.0,104400.0,1.03690338]
[1734317341969,8e-07,104410.0,104400.0,0.96995164]
[1734317342245,8e-07,104410.0,104400.0,0.96995491]
[1734317342457,8e-07,104410.0,104400.0,1.12497604]
[1734317342751,8e-07,104410.0,104400.0,1.11276163]
[1734317342973,8e-07,104410.0,104400.0,1.12616008]
[1734317343556,8e-07,104410.0,104400.0,1.08277371]
[1734317343982,8e-07,104410.0,104400.0,1.08277514]
[1734317344197,8e-07,104410.0,104400.0,1.12616008]
[1734317344404,0.12489087,104450.0,104430.0,0.39273687]
[1734317344607,0.0467,104460.0,104440.0,0.153186]
[1734317344608,0.12199087,104460.0,104440.0,0.153186]
[1734317344812,0.21628157,104460.0,104440.0,0.33232459]
[1734317345036,0.05,104450.0,104440.0,0.3323236]
[1734317345248,0.26628157,104460.0,104440.0,0.4855216]
[1734317345424,0.26628157,104460.0,104450.0,0.153183]
[1734317345640,0.26628157,104460.0,104450.0,0.18157882]
[1734317345775,0.26628157,104460.0,104450.0,0.1817481]
[1734317347588,0.26628157,104460.0,104440.0,0.47227841]
[1734317347838,0.26645073,104460.0,104450.0,0.153183]
[1734317348288,0.22165986,104460.0,104450.0,0.153183]
[1734317348525,0.132,104450.0,104440.0,0.146958]
[1734317348753,0.1762907,104450.0,104440.0,0.146958]
[1734317351458,0.2262907,104450.0,104440.0,0.146958]
[1734317351661,0.1762907,104450.0,104440.0,0.14049631]
[1734317356241,0.1762907,104450.0,104440.0,0.16233311]
[1734317359439,0.1762907,104450.0,104440.0,0.16831239]
[1734317359861,0.1762907,104450.0,104440.0,0.19274032]
[1734317360944,0.05034176,104460.0,104440.0,0.19274032]
[1734317361141,0.05034176,104460.0,104450.0,0.23950687]
[1734317361443,0.00034176,104460.0,104450.0,0.15916228]
[1734317361621,0.00034176,104460.0,104450.0,0.153183]
[1734317361622,0.05034176,104460.0,104450.0,0.153183]
[1734317361838,0.05034176,104460.0,104450.0,0.15916104]
[1734317362409,0.09513263,104460.0,104450.0,0.15916104]
[1734317362974,0.09513263,104460.0,104450.0,0.153183]
[1734317363221,0.00034176,104460.0,104450.0,0.153183]
[1734317363420,0.00034176,104460.0,104450.0,0.1591612]
[1734317364035,0.05034176,104460.0,104450.0,0.1591612]
[1734317364243,0.09513263,104460.0,104450.0,0.1591612]
[1734317364653,0.00034176,104460.0,104450.0,0.1591612]
[1734317365652,0.00034176,104460.0,104450.0,0.24548507]
[1734317365859,0.00034176,104460.0,104450.0,0.1591612]
[1734317365860,0.05034176,104460.0,104450.0,0.1591612]
[1734317366066,0.09513263,104460.0,104450.0,0.1591612]
[1734317367190,0.00034176,104460.0,104450.0,0.1591612]
[1734317367395,0.05034176,104460.0,104450.0,0.1591612]
[1734317367850,0.09513263,104460.0,104450.0,0.153183]
[1734317368003,0.09513263,104460.0,104450.0,0.0059782]
[1734317368192,0.09513263,104460.0,104450.0,0.1591612]
[1734317368592,0.17763263,104460.0,104450.0,0.0059782]
[1734317369473,0.28552333,104460.0,104450.0,0.0059782]
[1734317369680,0.42698333,104460.0,104450.0,0.0059782]
[1734317370437,0.9939072,104460.0,104450.0,0.0059782]
[1734317370891,0.09479087,104420.0,104400.0,0.3930363]
[1734317371090,0.09479087,104420.0,104400.0,0.00606672]
[1734317371091,0.04479087,104410.0,104400.0,0.00606672]
[1734317371291,0.1442907,104410.0,104400.0,0.00606672]
[1734317371445,0.2858427,104410.0,104400.0,0.00606672]
[1734317371649,0.0942907,104410.0,104400.0,0.00606672]
[1734317371848,0.43303537,104410.0,104400.0,0.00606672]
[1734317372059,0.4142427,104410.0,104400.0,0.00606672]
[1734317372262,0.41441173,104410.0,104400.0,0.00606672]
[1734317374336,0.41441173,104410.0,104400.0,0.00606889]
[1734317374535,0.41441173,104410.0,104400.0,8.63e-05]
[1734317375826,0.5041613,104410.0,104400.0,8.63e-05]
[1734317376488,0.41441173,104410.0,104400.0,8.63e-05]
[1734317376694,0.22285973,104410.0,104400.0,8.63e-05]
[1734317377281,0.41441173,104410.0,104400.0,8.63e-05]
[1734317378388,0.17475973,104410.0,104400.0,8.63e-05]
[1734317378969,0.17475973,104410.0,104400.0,0.15932413]
[1734317379354,0.0949599,104410.0,104400.0,0.15932413]
[1734317379783,0.0449599,104410.0,104400.0,0.15932413]
[1734317381010,0.36271173,104410.0,104400.0,0.00606813]
[1734317381165,0.36271173,104410.0,104400.0,0.00606798]
[1734317381582,0.44592429,104410.0,104400.0,0.00606798]
[1734317381783,0.44592429,104410.0,104400.0,8.63e-05]
[1734317382002,0.36271173,104410.0,104400.0,8.63e-05]
[1734317389530,0.17115973,104410.0,104400.0,0.1533423]
[1734317391966,0.17115973,104410.0,104400.0,8.63e-05]
[1734317391967,0.36271173,104410.0,104400.0,8.63e-05]
[1734317392632,0.45592429,104410.0,104400.0,8.63e-05]
[1734317393259,0.83652429,104410.0,104400.0,8.63e-05]
[1734317395112,1.07224816,104410.0,104400.0,8.63e-05]
[1734317395318,1.02224816,104410.0,104400.0,8.63e-05]
[1734317396171,1.04153499,104410.0,104400.0,8.63e-05]
[1734317397444,1.09153499,104410.0,104400.0,8.63e-05]
[1734317397780,1.00521112,104410.0,104400.0,8.63e-05]
[1734317398201,0.91199856,104410.0,104400.0,8.63e-05]
[1734317399219,0.53139856,104410.0,104400.0,8.63e-05]
[1734317399626,0.53139856,104410.0,104400.0,0.00606905]
[1734317399841,0.61772243,104410.0,104400.0,8.63e-05]
[1734317400251,0.48139856,104410.0,104400.0,8.63e-05]
[1734317400453,0.62557382,104410.0,104400.0,0.00606941]
[1734317400882,0.41211173,104410.0,104400.0,0.00606941]
[1734317401098,0.41271173,104410.0,104400.0,0.00606941]
[1734317402119,0.74331173,104410.0,104400.0,0.00606941]
[1734317402950,0.79331173,104410.0,104400.0,0.00606941]
[1734317403345,0.9788356,104410.0,104400.0,0.00606941]
[1734317403551,1.07301086,104410.0,104400.0,0.00606941]
[1734317404001,1.07301086,104410.0,104400.0,8.63e-05]
[1734317404209,1.02301086,104410.0,104400.0,8.63e-05]
[1734317405323,0.64241086,104410.0,104400.0,8.63e-05]
[1734317405533,0.59241086,104410.0,104400.0,8.63e-05]
[1734317405738,0.84241086,104410.0,104400.0,8.63e-05]
[1734317406956,0.59241086,104410.0,104400.0,8.63e-05]
[1734317407576,0.64241086,104410.0,104400.0,8.63e-05]
[1734317407782,0.46191173,104410.0,104400.0,8.63e-05]
[1734317407982,0.5482356,104410.0,104400.0,8.63e-05]
[1734317408746,0.5982356,104410.0,104400.0,8.63e-05]
[1734317408960,0.36271173,104410.0,104400.0,8.63e-05]
[1734317409157,0.46271173,104410.0,104400.0,8.63e-05]
[1734317409361,0.64321086,104410.0,104400.0,8.63e-05]
[1734317411205,1.02381086,104410.0,104400.0,8.63e-05]
[1734317411724,0.97381086,104410.0,104400.0,8.63e-05]
[1734317411949,1.01971086,104410.0,104400.0,8.63e-05]
[1734317412805,1.26971086,104410.0,104400.0,8.63e-05]
[1734317413740,1.21971086,104410.0,104400.0,8.63e-05]
[1734317414151,0.83911086,104410.0,104400.0,8.63e-05]
[1734317418427,0.66271173,104410.0,104400.0,8.63e-05]
[1734317418854,0.41271173,104410.0,104400.0,8.63e-05]
[1734317419307,0.36271173,104410.0,104400.0,8.63e-05]
[1734317420227,0.09445973,104410.0,104400.0,8.63e-05]
[1734317421158,0.09445973,104410.0,104400.0,0.1533423]
[1734317422346,0.09445973,104410.0,104400.0,8.63e-05]
[1734317422932,0.28601173,104410.0,104400.0,8.63e-05]
[1734317423156,0.37323246,104410.0,104400.0,8.63e-05]
[1734317423357,0.18168046,104410.0,104400.0,8.63e-05]
[1734317423721,0.09445973,104410.0,104400.0,8.63e-05]
[1734317427348,0.09445973,104410.0,104400.0,0.1724993]
[1734317428582,0.09445973,104410.0,104400.0,8.63e-05]
[1734317431912,0.09851207,104410.0,104400.0,8.63e-05]
[1734317432325,0.29006407,104410.0,104400.0,8.63e-05]
[1734317432608,0.10001827,104410.0,104400.0,8.63e-05]
[1734317432728,0.37789414,104410.0,104400.0,8.63e-05]
[1734317433129,0.42789414,104410.0,104400.0,8.63e-05]
[1734317434018,0.47789414,104410.0,104400.0,8.63e-05]
[1734317435030,0.55329414,104410.0,104400.0,8.63e-05]
[1734317437834,0.8227446,104410.0,104400.0,8.63e-05]
[1734317437984,0.91691986,104410.0,104400.0,8.63e-05]
[1734317438825,0.4727446,104410.0,104400.0,8.63e-05]
[1734317438978,0.5227446,104410.0,104400.0,8.63e-05]
[1734317439809,0.54212399,104410.0,104400.0,8.63e-05]
[1734317440287,0.73368899,104410.0,104380.0,0.38118944]
[1734317440492,0.04479087,104390.0,104380.0,0.38118944]
[1734317440701,0.09479087,104390.0,104380.0,0.45223663]
[1734317440922,0.10034809,104390.0,104380.0,0.46718479]
[1734317441320,0.04829226,104390.0,104380.0,0.46718479]
[1734317441473,0.099449,104390.0,104380.0,0.46718479]
[1734317442370,0.049449,104390.0,104380.0,0.46718479]
[1734317442578,0.049449,104390.0,104380.0,0.38118832]
[1734317442579,0.09894883,104390.0,104380.0,0.38118832]
[1734317442933,0.09894883,104390.0,104380.0,0.15954332]
[1734317444772,0.1437397,104390.0,104380.0,0.15954332]
[1734317444973,0.1937397,104390.0,104380.0,0.29283979]
[1734317445352,0.099449,104390.0,104380.0,0.29283979]
[1734317445768,0.049449,104390.0,104380.0,0.29283979]
[1734317446003,0.099449,104390.0,104380.0,0.4218345]
[1734317446230,0.099449,104390.0,104380.0,0.29283979]
[1734317446650,0.049449,104390.0,104380.0,0.29283979]
[1734317448424,0.099449,104390.0,104380.0,0.29283979]
[1734317448647,0.049449,104390.0,104380.0,0.29291948]
[1734317449150,0.099449,104390.0,104380.0,0.42191415]
[1734317449499,0.099449,104390.0,104380.0,0.73933704]
[1734317449974,0.099449,104390.0,104380.0,0.76376497]
[1734317450122,0.099449,104390.0,104380.0,0.93575268]
[1734317450778,0.049449,104390.0,104380.0,0.93575268]
[1734317451125,0.099449,104390.0,104380.0,0.93575268]
[1734317451479,0.099449,104390.0,104380.0,1.06474346]
[1734317452287,0.00465813,104390.0,104380.0,1.06474346]
[1734317452500,0.00465813,104390.0,104380.0,1.10852115]
[1734317453192,0.00465813,104390.0,104380.0,0.93653344]
[1734317454020,0.00465813,104390.0,104380.0,0.72154881]
[1734317454220,0.00465813,104390.0,104380.0,0.97953037]
[1734317454425,0.0942907,104390.0,104380.0,0.73503397]
[1734317454638,0.0942907,104390.0,104380.0,0.71934151]
[1734317454851,0.0942907,104390.0,104380.0,0.01503436]
[1734317454852,0.09895417,104390.0,104380.0,0.01503436]
[1734317455048,0.35561727,104390.0,104380.0,8.62e-05]
[1734317456700,0.43391727,104390.0,104380.0,8.62e-05]
[1734317458564,0.52024114,104390.0,104380.0,8.62e-05]
[1734317458806,0.48391727,104390.0,104380.0,8.62e-05]
[1734317459079,0.41884317,104390.0,104380.0,8.62e-05]
[1734317459536,0.36884317,104390.0,104380.0,8.62e-05]
[1734317460625,0.09912677,104390.0,104380.0,0.1533722]
[1734317461252,0.14391764,104390.0,104380.0,0.1533722]
[1734317461461,0.04962694,104390.0,104380.0,0.36828478]
[1734317461672,0.17682677,104390.0,104380.0,0.08605123]
[1734317461878,0.36841577,104390.0,104380.0,8.62e-05]
[1734317463082,0.17682677,104390.0,104380.0,8.62e-05]
[1734317463281,0.17682677,104390.0,104380.0,0.1533722]
[1734317463491,0.1944337,104390.0,104380.0,0.1533722]
[1734317463698,0.17682677,104390.0,104380.0,0.1533722]
[1734317464444,0.14391764,104390.0,104380.0,0.23933723]
[1734317464650,0.14391764,104390.0,104380.0,0.36828478]
[1734317464888,0.14391764,104390.0,104380.0,0.68561371]
[1734317465468,0.14391764,104390.0,104380.0,0.85754378]
[1734317465877,0.14391764,104390.0,104380.0,0.68561371]
[1734317466084,0.14391764,104390.0,104380.0,0.23933723]
[1734317466501,0.14391764,104390.0,104380.0,0.54021485]
[1734317466699,0.14391764,104390.0,104380.0,0.85754515]
[1734317466916,0.00483607,104390.0,104380.0,0.85754515]
[1734317467155,0.00483607,104390.0,104380.0,0.94386903]
[1734317467426,0.00483607,104390.0,104380.0,1.03801218]
[1734317467640,0.00483607,104390.0,104380.0,0.72859761]
[1734317467641,0.05483607,104390.0,104380.0,0.72859761]
[1734317467846,0.00483607,104390.0,104380.0,0.4707025]
[1734317468057,0.00483607,104390.0,104380.0,0.66900394]
[1734317468058,0.04962694,104390.0,104380.0,0.66900394]
[1734317468267,0.04962694,104390.0,104380.0,0.68556403]
[1734317468473,0.04962694,104390.0,104380.0,0.54011373]
[1734317469093,0.04962694,104390.0,104380.0,0.98633424]
[1734317469238,0.04962694,104390.0,104380.0,1.07228404]
[1734317469451,0.04962694,104390.0,104380.0,0.98634139]
[1734317471034,0.04962694,104390.0,104380.0,1.07228917]
[1734317471586,0.04962694,104390.0,104380.0,0.98634139]
[1734317471843,0.04962694,104390.0,104380.0,0.85741644]
[1734317472246,0.04962694,104390.0,104380.0,0.75501596]
[1734317472508,0.04962694,104390.0,104380.0,0.98634139]
[1734317472711,0.04962694,104390.0,104380.0,0.85741598]
[1734317473940,0.37657846,104390.0,104380.0,0.70412998]
[1734317474141,0.37657846,104390.0,104370.0,0.2338759]
[1734317474142,0.272507,104380.0,104370.0,0.08595133]
[1734317474274,0.191625,104370.0,104360.0,0.01494789]
[1734317474474,0.37223957,104370.0,104360.0,0.01494789]
[1734317474677,0.37582437,104370.0,104360.0,0.01494789]
[1734317474876,0.51999963,104370.0,104360.0,0.01494789]
[1734317475092,0.05,104360.0,104350.0,8.63e-05]
[1734317475274,0.3359347,104360.0,104350.0,8.63e-05]
[1734317475475,0.3400045,104360.0,104350.0,8.63e-05]
[1734317475685,0.1483605,104360.0,104350.0,8.63e-05]
[1734317475881,0.34017341,104360.0,104350.0,8.63e-05]
[1734317476344,0.43434867,104360.0,104350.0,8.63e-05]
[1734317476545,0.34017341,104360.0,104350.0,8.63e-05]
[1734317476753,0.04479087,104350.0,104330.0,0.2369589]
[1734317476954,0.13908157,104350.0,104330.0,0.2369589]
[1734317477154,0.00404857,104340.0,104330.0,0.2369589]
[1734317477659,0.00404857,104340.0,104330.0,0.3903129]
[1734317477815,0.00404857,104340.0,104330.0,0.47663677]
[1734317478016,0.05404857,104340.0,104330.0,0.47663677]
[1734317478831,0.05016891,104360.0,104350.0,0.20253]
[1734317480543,0.00016891,104360.0,104350.0,0.20253]
[1734317480952,0.00016891,104360.0,104340.0,0.52927089]
[1734317481159,0.00016891,104360.0,104340.0,0.62356159]
[1734317481367,0.00016891,104360.0,104350.0,0.31515387]
[1734317482116,0.00016891,104360.0,104350.0,0.40944457]
[1734317483822,0.00016891,104360.0,104350.0,0.45444457]
[1734317484179,0.00016891,104360.0,104350.0,0.54025532]
[1734317486328,0.00016891,104360.0,104350.0,0.54546445]
[1734317486478,0.00545791,104360.0,104350.0,0.54546445]
[1734317486677,0.00545791,104360.0,104350.0,0.67418085]
[1734317487068,0.00545791,104360.0,104350.0,0.75995433]
[1734317487721,0.00218796,104360.0,104350.0,0.75995433]
[1734317487893,0.00835735,104360.0,104350.0,0.75995433]
[1734317488052,0.05,104380.0,104350.0,0.75995433]
[1734317488254,0.05,104380.0,104360.0,0.57302582]
[1734317488629,0.05,104380.0,104370.0,0.1533]
[1734317489047,0.05,104380.0,104370.0,0.3066]
[1734317490307,0.0501726,104390.0,104370.0,0.3066]
[1734317490511,0.05,104380.0,104370.0,0.3066]
[1734317492202,0.18061457,104380.0,104370.0,0.15329]
[1734317492403,0.04479087,104370.0,104360.0,0.153305]
[1734317492626,0.0942907,104370.0,104360.0,0.153305]
[1734317495389,0.10267255,104370.0,104360.0,0.153305]
[1734317499022,0.10267255,104370.0,104360.0,0.1533913]
[1734317499503,0.09479087,104360.0,104350.0,0.17040044]
[1734317499879,0.10313311,104360.0,104350.0,0.17040044]
[1734317502205,0.05834224,104360.0,104350.0,0.17040044]
[1734317502404,0.10313311,104360.0,104350.0,0.17040044]
[1734317502607,0.05834224,104360.0,104350.0,0.17040044]
[1734317503949,0.05834224,104360.0,104340.0,0.39868701]
[1734317504146,0.05890744,104360.0,104350.0,0.153318]
[1734317509773,0.00890744,104360.0,104350.0,0.23964187]
[1734317510206,0.05890744,104360.0,104350.0,0.23964187]
[1734317510610,0.00890744,104360.0,104350.0,0.23964187]
[1734317510812,0.00890744,104360.0,104350.0,0.31514187]
[1734317511398,4.4e-07,104360.0,104350.0,0.55003845]
[1734317511593,0.0001726,104380.0,104370.0,0.259238]
[1734317511757,0.0001726,104380.0,104370.0,0.4450617]
[1734317511959,0.0001726,104380.0,104370.0,0.53378593]
[1734317512119,0.0001726,104380.0,104370.0,0.44746206]
[1734317512562,0.0001726,104380.0,104370.0,0.4450617]
[1734317514368,6e-07,104390.0,104370.0,0.79965057]
[1734317514569,6e-07,104390.0,104380.0,0.31473957]
[1734317518689,6e-07,104390.0,104380.0,0.46193339]
[1734317518897,0.00564439,104390.0,104380.0,0.46193339]
[1734317519078,6e-07,104390.0,104380.0,0.32780839]
[1734317519273,0.00564439,104390.0,104380.0,0.46193339]
[1734317519473,6e-07,104390.0,104380.0,0.46714252]
[1734317519678,0.00564439,104390.0,104380.0,0.46714252]
[1734317527272,0.09479087,104430.0,104410.0,0.134086]
[1734317527474,0.0778724,104440.0,104430.0,0.134061]
[1734317527475,0.12266327,104440.0,104430.0,0.134061]
[1734317527714,0.0001724,104440.0,104430.0,0.134061]
[1734317527981,0.04496327,104440.0,104430.0,0.134061]
[1734317528444,0.05,104430.0,104420.0,0.35445621]
[1734317529154,0.00034209,104440.0,104420.0,0.35445621]
[1734317529155,0.05034209,104440.0,104420.0,0.66371991]
[1734317529416,0.05034209,104440.0,104430.0,0.22038487]
[1734317530403,0.00034209,104440.0,104430.0,0.22038487]
[1734317531105,0.05034209,104440.0,104430.0,0.22038487]
[1734317531323,0.00034209,104440.0,104430.0,0.22038487]
[1734317531873,0.00034209,104440.0,104430.0,0.31467557]
[1734317533187,0.00034209,104440.0,104430.0,0.32076249]
[1734317533408,0.00034209,104440.0,104430.0,0.31467557]
[1734317534111,0.00034209,104440.0,104430.0,0.40620857]
[1734317534790,0.00548188,104440.0,104430.0,0.40620857]
[1734317535255,0.00548188,104440.0,104430.0,0.4249184]
[1734317535494,0.00548188,104440.0,104430.0,0.5022184]
[1734317535962,0.00548188,104440.0,104430.0,0.5475184]
[1734317537617,0.12389087,104480.0,104470.0,0.134009]
[1734317537858,0.21818157,104480.0,104470.0,0.134009]
[1734317538112,0.12389087,104480.0,104470.0,0.134009]
[1734317538868,0.12445596,104480.0,104470.0,0.134009]
[1734317541710,0.00056509,104480.0,104470.0,0.134009]
[1734317542677,0.30098935,104500.0,104480.0,0.267991]
[1734317542887,0.09446016,104490.0,104480.0,0.267991]
[1734317545000,0.00016946,104490.0,104480.0,0.267991]
[1734317545419,0.00453925,104490.0,104480.0,0.267991]
[1734317547514,0.47446019,104510.0,104490.0,0.133984]
[1734317547790,0.0942907,104500.0,104490.0,0.133984]
[1734317547979,0.0942907,104500.0,104490.0,0.267968]
[1734317550808,0.0944631,104500.0,104490.0,0.267968]
[1734317551618,0.0944631,104500.0,104490.0,0.133984]
[1734317551847,0.078,104490.0,104470.0,0.28962719]
[1734317552062,0.191442,104470.0,104450.0,0.268068]
[1734317552280,0.0942907,104460.0,104450.0,0.13459809]
[1734317552489,0.0942907,104460.0,104450.0,0.02231513]
[1734317552694,0.0942907,104460.0,104450.0,0.15635013]
[1734317554514,0.37207457,104460.0,104450.0,0.00056509]
[1734317554727,0.2857507,104460.0,104450.0,0.00056509]
[1734317557574,0.21975069,104460.0,104450.0,0.00056509]
[1734317559165,0.30065069,104460.0,104450.0,0.00056509]
[1734317561797,0.10919069,104460.0,104450.0,0.00056509]
[1734317561997,0.02829069,104460.0,104450.0,0.15374809]
[1734317562647,0.0942907,104460.0,104450.0,0.15383429]
[1734317567506,0.02829069,104460.0,104450.0,0.15383429]
[1734317568126,0.21975069,104460.0,104450.0,0.00065129]
[1734317570470,0.52229843,104460.0,104450.0,0.00065129]
[1734317570724,0.90289843,104460.0,104450.0,0.00065129]
[1734317570938,0.98724872,104460.0,104450.0,0.00065129]
[1734317571140,1.20794942,104460.0,104450.0,0.00065129]
[1734317571751,1.37665001,104460.0,104450.0,0.00065129]
[1734317572240,1.20794942,104460.0,104450.0,0.00065129]
[1734317572808,1.02745029,104460.0,104450.0,0.00065129]
[1734317573210,1.03881407,104460.0,104450.0,0.00065129]
[1734317573380,0.91228863,104460.0,104450.0,0.00065129]
[1734317574186,0.91232678,104460.0,104450.0,0.00065129]
[1734317574385,0.93422406,104460.0,104450.0,0.00065129]
[1734317574589,0.61171447,104460.0,104450.0,0.00065129]
[1734317574761,0.45896379,104460.0,104450.0,0.00065129]
[1734317575576,0.45913619,104460.0,104450.0,0.00065129]
[1734317576461,0.07853619,104460.0,104450.0,0.00065129]
[1734317576673,0.26999619,104460.0,104450.0,0.00065129]
[1734317577068,0.0001724,104460.0,104450.0,0.15383429]
[1734317577289,0.0001724,104460.0,104450.0,0.23063429]
[1734317577952,0.0001724,104460.0,104450.0,0.31695816]
[1734317578144,0.0001724,104460.0,104450.0,0.23063429]
[1734317578513,0.0001724,104460.0,104450.0,0.50704886]
[1734317578716,0.0001724,104500.0,104450.0,0.38444886]
[1734317578938,0.0001724,104500.0,104490.0,0.153124]
[1734317582151,0.51924427,104510.0,104480.0,0.590884]
[1734317582356,0.191388,104500.0,104480.0,0.59105346]
[1734317582560,0.191388,104500.0,104480.0,0.43792346]
[1734317582794,0.191388,104500.0,104480.0,0.59105346]
[1734317583457,0.191388,104500.0,104480.0,0.43792346]
[1734317585840,0.382776,104500.0,104480.0,0.43792346]
[1734317588805,0.3829484,104500.0,104480.0,0.43792346]
[1734317589137,0.1915604,104500.0,104480.0,0.59105446]
[1734317589419,0.0001724,104500.0,104490.0,0.153124]
[1734317589594,0.1915594,104500.0,104480.0,0.59105546]
[1734317590010,0.1915594,104500.0,104480.0,0.43792446]
[1734317590571,0.1915604,104500.0,104480.0,0.59105246]
[1734317590779,0.1915604,104500.0,104480.0,0.43792446]
[1734317591959,0.0001724,104500.0,104480.0,0.43792446]
[1734317592183,0.0001724,104500.0,104490.0,0.153124]
[1734317595091,0.1915594,104500.0,104480.0,0.59105746]
[1734317596059,0.1915594,104500.0,104490.0,0.153124]
[1734317596501,0.0001724,104500.0,104490.0,0.153124]
[1734317596901,0.2858045,104510.0,104490.0,0.306248]
[1734317597122,0.2858045,104510.0,104490.0,0.459372]
[1734317597758,0.2858045,104510.0,104490.0,0.306248]
[1734317597973,0.2858045,104510.0,104490.0,0.459364]
[1734317598587,0.2858045,104510.0,104490.0,0.30624]
[1734317598792,0.2858045,104510.0,104490.0,0.459355]
[1734317599199,0.4771845,104510.0,104490.0,0.153115]
[1734317599404,0.75489337,104510.0,104490.0,0.153115]
[1734317599789,0.56350837,104510.0,104490.0,0.153115]
[1734317600148,0.75489137,104510.0,104490.0,0.153115]
[1734317600388,0.56350837,104510.0,104490.0,0.153115]
[1734317600797,0.75488937,104510.0,104490.0,0.153115]
[1734317601735,0.191405,104490.0,104480.0,0.00025566]
[1734317601953,0.50834344,104490.0,104480.0,0.00025566]
[1734317602186,0.63354344,104490.0,104480.0,0.00025566]
[1734317602417,0.44213844,104490.0,104480.0,0.00025566]
[1734317602645,0.63354344,104490.0,104480.0,0.00025566]
[1734317605511,0.6524937,104490.0,104480.0,0.00025566]
[1734317606551,1.0330937,104490.0,104480.0,0.00025566]
[1734317607515,0.94676983,104490.0,104480.0,0.00025566]
[1734317608200,1.07726896,104490.0,104480.0,0.00025566]
[1734317608418,0.77301077,104490.0,104480.0,0.00025566]
[1734317608657,1.31855712,104490.0,104480.0,0.00025566]
[1734317610615,1.14967349,104490.0,104480.0,0.00025566]
[1734317612014,1.05549823,104490.0,104480.0,0.00025566]
[1734317612219,0.90207436,104490.0,104480.0,0.00025566]
[1734317612624,1.28267436,104490.0,104480.0,5.522e-05]
[1734317612824,1.03267436,104490.0,104480.0,5.522e-05]
[1734317613260,0.82156983,104490.0,104480.0,5.522e-05]
[1734317613835,0.91574509,104490.0,104480.0,5.522e-05]
[1734317614646,0.82156983,104490.0,104480.0,5.522e-05]
[1734317615681,0.44096983,104490.0,104480.0,5.522e-05]
[1734317617067,0.5272937,104490.0,104480.0,5.522e-05]
[1734317617839,0.61173551,104490.0,104480.0,5.522e-05]
[1734317618038,0.5272937,104490.0,104480.0,5.522e-05]
[1734317618334,0.83260271,104490.0,104480.0,5.522e-05]
[1734317618740,1.21320271,104490.0,104480.0,5.522e-05]
[1734317620695,1.38210971,104490.0,104480.0,5.522e-05]
[1734317622264,1.21320271,104490.0,104480.0,5.522e-05]
[1734317622457,1.38210971,104490.0,104480.0,5.522e-05]
[1734317622709,1.41274433,104490.0,104480.0,5.522e-05]
[1734317623024,1.03270358,104490.0,104480.0,5.522e-05]
[1734317623402,0.90602333,104490.0,104480.0,5.522e-05]
[1734317623604,1.03270358,104490.0,104480.0,5.522e-05]
[1734317624227,1.03287598,104490.0,104480.0,5.522e-05]
[1734317626586,1.20178298,104490.0,104480.0,5.522e-05]
[1734317626996,1.28810685,104490.0,104480.0,5.522e-05]
[1734317629054,1.11919985,104490.0,104480.0,5.522e-05]
[1734317629405,1.28810685,104490.0,104480.0,5.522e-05]
[1734317630799,1.38228211,104490.0,104480.0,5.522e-05]